[Event "FIDE World Cup G12-B 2024"]
[Site "Batumi"]
[Date "2024.06.23"]
[Round "1.1"]
[White "QUICKPEN, Deborah Ebimobo-ere"]
[Black "Pavithra R V"]
[Result "0-1"]
[ECO "D37"]
[WhiteElo "2048"]
[BlackElo "1614"]
[Annotator "NA RC"]
[PlyCount "54"]
[EventDate "2024.06.23"]
[EventType "swiss"]
[EventCountry "GEO"]
[SourceTitle "playchess.com"]
[Source "ChessBase"]
[SourceQuality "1"]
[TimeControl "5400+30"]

1. d4 {[%emt 0:00:02]} d5 {[%emt 0:00:10]} 2. c4 {[%emt 0:00:08]} e6 {[%emt 0:00:04]} 3. Nf3 {[%emt 0:00:06]} Nf6 {[%emt 0:00:05]} 4. Nc3 {[%emt 0:00:13]} Be7 {[%emt 0:00:09]} 5. Bf4 {[%emt 0:00:23]} O-O {[%emt 0:00:30]} 6. e3 {[%emt 0:00:18]} a6 {[%emt 0:00:34]} 7. cxd5 {[%emt 0:00:57]} exd5 {[%emt 0:00:09]} 8. Bd3 {[%emt 0:01:26]} h6 {[%emt 0:01:21]} 9. O-O {[%emt 0:00:27]} Nh5 {[%emt 0:00:28]} 10. Bg3 {[%emt 0:00:36]} Nxg3 {[%emt 0:00:07]} 11. hxg3 {[%emt 0:00:07]} Bf6 {[%emt 0:01:31]} 12. Qb3 {[%emt 0:01:58]} c6 {[%emt 0:00:23]} 13. Rac1 {[%emt 0:01:18]} Nd7 {[%emt 0:05:09]} 14. Na4 {[%emt 0:02:44]} a5 {[%emt 0:04:29]} 15. Rfd1 {[%emt 0:06:14]} Be7 {[%emt 0:17:20]} 16. Bb1 {[%emt 0:07:52]} g6 {[%emt 0:01:54]} 17. Nc5 {[%emt 0:02:37]} Bxc5 {[%emt 0:06:56]} 18. dxc5 {[%emt 0:00:11]} a4 {[%emt 0:00:14]} 19. Qb4 {[%emt 0:01:54]} Qe7 {[%emt 0:02:44]} 20. a3 {[%emt 0:07:33]} Re8 {[%emt 0:09:57]} 21. Rd4 {[%emt 0:01:46]} b6 {[%emt 0:02:58]} 22. cxb6 {[%emt 0:02:41]} c5 {[%emt 0:00:12]} 23. b7 {[%emt 0:00:06]} Bxb7 {[%emt 0:00:29]} 24. Qxb7 {[%emt 0:00:07]} cxd4 {[%emt 0:00:06]} 25. Rc7 {[%emt 0:00:24]} dxe3 {[%emt 0:07:23]} 26. Rxd7 {[%emt 0:02:22]} exf2+ {[%emt 0:00:43]} 27. Kh2 {[%emt 0:00:22]} Qxd7 {[%emt 0:00:48]} 0-1

[Event "FIDE World Cup G12-B 2024"]
[Site "Batumi"]
[Date "2024.06.23"]
[Round "1.2"]
[White "Vazquez Sanchez, Antia"]
[Black "Gunawardhana, Devindya Oshini"]
[Result "0-1"]
[ECO "D30"]
[WhiteElo "1607"]
[BlackElo "1980"]
[Annotator "NA RC"]
[PlyCount "70"]
[EventDate "2024.06.23"]
[EventType "swiss"]
[EventCountry "GEO"]
[SourceTitle "playchess.com"]
[Source "ChessBase"]
[SourceQuality "1"]
[TimeControl "5400+30"]

1. d4 {[%emt 0:00:04]} Nf6 {[%emt 0:00:06]} 2. c4 {[%emt 0:00:47]} e6 {[%emt 0:00:08]} 3. Nf3 {[%emt 0:00:11]} d5 {[%emt 0:00:13]} 4. Qc2 {[%emt 0:01:48]} Bb4+ {[%emt 0:02:47]} 5. Bd2 {[%emt 0:00:48]} Bxd2+ {[%emt 0:04:46]} 6. Nbxd2 {[%emt 0:00:10]} O-O {[%emt 0:00:21]} 7. g3 {[%emt 0:00:10]} Nc6 {[%emt 0:05:29]} 8. Rd1 {[%emt 0:06:25]} a5 {[%emt 0:01:42]} 9. a3 {[%emt 0:10:49]} Qd6 {[%emt 0:15:31]} 10. Bg2 {[%emt 0:05:58]} b6 {[%emt 0:00:57]} 11. O-O {[%emt 0:04:13]} Bb7 {[%emt 0:00:33]} 12. Rfe1 {[%emt 0:03:56]} Ne7 {[%emt 0:06:58]} 13. Ne5 {[%emt 0:05:31]} c5 {[%emt 0:06:34]} 14. Ndf3 {[%emt 0:56:40]} Rac8 {[%emt 0:05:52]} 15. Qb3 {[%emt 0:00:00]} Ne4 {[%emt 0:05:27]} 16. dxc5 {[%emt 0:00:00]} Qxc5 {[%emt 0:01:56]} 17. Nd7 {[%emt 0:00:00]} Qxf2+ {[%emt 0:02:10]} 18. Kh1 {[%emt 0:00:00]} dxc4 {[%emt 0:00:20]} 19. Qa4 {[%emt 0:00:00]} Qe3 {[%emt 0:01:23]} 20. Rf1 {[%emt 0:00:00]} Bc6 {[%emt 0:00:51]} 21. Qc2 {[%emt 0:00:00]} Bxd7 {[%emt 0:00:43]} 22. Rxd7 {[%emt 0:00:00]} Nf5 {[%emt 0:00:07]} 23. Qxe4 {[%emt 0:00:00]} Qxe4 {[%emt 0:00:03]} 24. Ng1 {[%emt 0:00:00]} Qe5 {[%emt 0:00:24]} 25. Rd2 {[%emt 0:00:00]} Ne3 {[%emt 0:00:08]} 26. Rc1 {[%emt 0:00:00]} Rfd8 {[%emt 0:00:18]} 27. Rxd8+ {[%emt 0:00:49]} Rxd8 {[%emt 0:00:02]} 28. Bf3 {[%emt 0:02:07]} Qxb2 {[%emt 0:00:04]} 29. Re1 {[%emt 0:00:49]} c3 {[%emt 0:00:04]} 30. Be4 {[%emt 0:01:03]} c2 {[%emt 0:00:09]} 31. Bxc2 {[%emt 0:02:30]} Qxc2 {[%emt 0:00:04]} 32. Nf3 {[%emt 0:00:16]} Rd1 {[%emt 0:00:03]} 33. Rxd1 {[%emt 0:00:55]} Qxd1+ {[%emt 0:00:02]} 34. Ng1 {[%emt 0:00:03]} Qf1 {[%emt 0:00:04]} 35. h3 {[%emt 0:00:36]} Qg2# {[%emt 0:00:02]} 0-1

[Event "FIDE World Cup G12-B 2024"]
[Site "Batumi"]
[Date "2024.06.23"]
[Round "1.3"]
[White "Sreekarthika Velmurugan"]
[Black "Abylaykyzy, Bibisara"]
[Result "0-1"]
[ECO "B22"]
[WhiteElo "1838"]
[BlackElo "1577"]
[Annotator "NA RC"]
[PlyCount "100"]
[EventDate "2024.06.23"]
[EventType "swiss"]
[EventCountry "GEO"]
[SourceTitle "playchess.com"]
[Source "ChessBase"]
[SourceQuality "1"]
[TimeControl "5400+30"]

1. e4 {[%emt 0:00:05]} c5 {[%emt 0:00:09]} 2. Nf3 {[%emt 0:00:05]} e6 {[%emt 0:00:09]} 3. c3 {[%emt 0:00:04]} Nf6 {[%emt 0:00:07]} 4. e5 {[%emt 0:00:05]} Nd5 {[%emt 0:00:04]} 5. Bc4 {[%emt 0:00:24]} Nb6 {[%emt 0:00:09]} 6. Bb3 {[%emt 0:00:06]} d5 {[%emt 0:03:37]} 7. d4 {[%emt 0:00:19]} Nc6 {[%emt 0:01:08]} 8. O-O {[%emt 0:01:43]} Be7 {[%emt 0:00:35]} 9. Be3 {[%emt 0:02:06]} cxd4 {[%emt 0:00:14]} 10. cxd4 {[%emt 0:00:10]} Na5 {[%emt 0:01:15]} 11. Bc2 {[%emt 0:00:35]} Nbc4 {[%emt 0:03:05]} 12. Bc1 {[%emt 0:17:20]} Bd7 {[%emt 0:00:35]} 13. Nc3 {[%emt 0:00:35]} Rc8 {[%emt 0:03:24]} 14. Qd3 {[%emt 0:03:35]} a6 {[%emt 0:09:15]} 15. Ne1 {[%emt 0:06:58]} b5 {[%emt 0:03:10]} 16. a3 {[%emt 0:01:45]} Qc7 {[%emt 0:02:41]} 17. Ne2 {[%emt 0:05:33]} b4 {[%emt 0:04:11]} 18. a4 {[%emt 0:02:12]} Qb7 {[%emt 0:13:15]} 19. Qg3 {[%emt 0:01:37]} g6 {[%emt 0:03:06]} 20. b3 {[%emt 0:00:33]} Na3 {[%emt 0:03:20]} 21. Bd3 {[%emt 0:00:21]} Nxb3 {[%emt 0:00:46]} 22. Bxa3 {[%emt 0:05:54]} Nxa1 {[%emt 0:00:47]} 23. Bb2 {[%emt 0:00:04]} Nb3 {[%emt 0:01:01]} 24. Bxg6 {[%emt 0:14:24]} hxg6 {[%emt 0:01:24]} 25. Qxb3 {[%emt 0:00:06]} Qc6 {[%emt 0:00:39]} 26. a5 {[%emt 0:10:38]} Qb5 {[%emt 0:01:04]} 27. Qe3 {[%emt 0:07:40]} Qxa5 {[%emt 0:01:41]} 28. Nf3 {[%emt 0:03:29]} Rc2 {[%emt 0:01:29]} 29. Bc1 {[%emt 0:00:25]} Bb5 {[%emt 0:00:28]} 30. Bd2 {[%emt 0:00:42]} Qa2 {[%emt 0:00:58]} 31. Rd1 {[%emt 0:03:08]} Bxe2 {[%emt 0:01:08]} 32. Qxe2 {[%emt 0:00:05]} b3 {[%emt 0:00:05]} 33. Qd3 {[%emt 0:00:29]} Qa4 {[%emt 0:02:42]} 34. Rb1 {[%emt 0:00:50]} b2 {[%emt 0:01:30]} 35. Ne1 {[%emt 0:00:39]} Rc4 {[%emt 0:02:33]} 36. Bc3 {[%emt 0:02:22]} Qb3 {[%emt 0:05:10]} 37. Bxb2 {[%emt 0:00:40]} Qxd3 {[%emt 0:00:07]} 38. Nxd3 {[%emt 0:00:05]} O-O {[%emt 0:00:13]} 39. Kf1 {[%emt 0:01:08]} a5 {[%emt 0:00:03]} 40. Ra1 {[%emt 0:00:24]} a4 {[%emt 0:00:43]} 41. Ke2 {[%emt 0:01:52]} Ra8 {[%emt 0:02:06]} 42. Ke3 {[%emt 0:00:33]} a3 {[%emt 0:02:58]} 43. Nc5 {[%emt 0:00:45]} Kg7 {[%emt 0:01:25]} 44. Bc1 {[%emt 0:00:51]} Bxc5 {[%emt 0:03:56]} 45. dxc5 {[%emt 0:00:06]} Rxc5 {[%emt 0:00:07]} 46. Kd3 {[%emt 0:00:18]} a2 {[%emt 0:00:38]} 47. Be3 {[%emt 0:00:50]} Rb5 {[%emt 0:01:22]} 48. Kc2 {[%emt 0:00:02]} Rc8+ {[%emt 0:01:01]} 49. Kd2 {[%emt 0:00:10]} Rb2+ {[%emt 0:00:07]} 50. Kd3 {[%emt 0:00:03]} Ra8 {[%emt 0:00:36]} 0-1

[Event "FIDE World Cup G12-B 2024"]
[Site "Batumi"]
[Date "2024.06.23"]
[Round "1.4"]
[White "Lu, Yichen"]
[Black "Pratitee Bordoloi"]
[Result "0-1"]
[ECO "B11"]
[WhiteElo "1561"]
[BlackElo "1796"]
[Annotator "NA RC"]
[PlyCount "120"]
[EventDate "2024.06.23"]
[EventType "swiss"]
[EventCountry "GEO"]
[SourceTitle "playchess.com"]
[Source "ChessBase"]
[SourceQuality "1"]
[TimeControl "5400+30"]

1. e4 {[%emt 0:00:03]} c6 {[%emt 0:00:05]} 2. Nc3 {[%emt 0:00:12]} d5 {[%emt 0:00:17]} 3. Nf3 {[%emt 0:00:07]} Bg4 {[%emt 0:00:16]} 4. h3 {[%emt 0:00:09]} Bxf3 {[%emt 0:00:10]} 5. Qxf3 {[%emt 0:00:09]} e6 {[%emt 0:00:14]} 6. d4 {[%emt 0:00:44]} Nf6 {[%emt 0:01:13]} 7. Bg5 {[%emt 0:04:47]} Be7 {[%emt 0:01:32]} 8. Bxf6 {[%emt 0:07:35]} Bxf6 {[%emt 0:00:12]} 9. e5 {[%emt 0:00:20]} Be7 {[%emt 0:01:34]} 10. Qg4 {[%emt 0:03:07]} O-O {[%emt 0:02:25]} 11. Bd3 {[%emt 0:02:07]} c5 {[%emt 0:03:47]} 12. dxc5 {[%emt 0:07:43]} Nc6 {[%emt 0:02:10]} 13. f4 {[%emt 0:04:59]} Bxc5 {[%emt 0:01:55]} 14. O-O-O {[%emt 0:04:30]} Qb6 {[%emt 0:09:25]} 15. Qh5 {[%emt 0:05:24]} g6 {[%emt 0:02:55]} 16. Qh6 {[%emt 0:00:23]} Be3+ {[%emt 0:01:42]} 17. Kb1 {[%emt 0:00:49]} Qb4 {[%emt 0:04:02]} 18. Ne2 {[%emt 0:02:16]} Nxe5 {[%emt 0:04:18]} 19. c3 {[%emt 0:06:45]} Qc5 {[%emt 0:03:22]} 20. Ng3 {[%emt 0:03:21]} f5 {[%emt 0:06:00]} 21. Be2 {[%emt 0:08:23]} Qe7 {[%emt 0:02:48]} 22. Qg5 {[%emt 0:03:01]} Qxg5 {[%emt 0:00:17]} 23. fxg5 {[%emt 0:00:09]} Bxg5 {[%emt 0:00:07]} 24. h4 {[%emt 0:00:17]} Bf4 {[%emt 0:00:47]} 25. Nf1 {[%emt 0:00:15]} Rad8 {[%emt 0:01:15]} 26. g3 {[%emt 0:00:46]} Bh6 {[%emt 0:00:08]} 27. Nh2 {[%emt 0:01:06]} Kf7 {[%emt 0:07:53]} 28. g4 {[%emt 0:00:28]} f4 {[%emt 0:02:17]} 29. g5 {[%emt 0:00:24]} Bg7 {[%emt 0:00:07]} 30. Rd4 {[%emt 0:00:31]} Ke7 {[%emt 0:00:42]} 31. Rb4 {[%emt 0:00:26]} Rd7 {[%emt 0:07:46]} 32. Rf1 {[%emt 0:00:33]} d4 {[%emt 0:01:16]} 33. Rxd4 {[%emt 0:01:55]} Rxd4 {[%emt 0:00:11]} 34. cxd4 {[%emt 0:00:06]} Nc6 {[%emt 0:00:07]} 35. Bf3 {[%emt 0:02:11]} Bxd4 {[%emt 0:01:31]} 36. Rc1 {[%emt 0:01:10]} Be3 {[%emt 0:02:26]} 37. Rf1 {[%emt 0:00:35]} Ne5 {[%emt 0:02:33]} 38. Bxb7 {[%emt 0:00:29]} Nc4 {[%emt 0:00:12]} 39. Nf3 {[%emt 0:03:27]} Rb8 {[%emt 0:00:42]} 40. Ba6 {[%emt 0:00:45]} Rxb2+ {[%emt 0:01:17]} 41. Ka1 {[%emt 0:00:12]} Rc2 {[%emt 0:00:15]} 42. Bb5 {[%emt 0:02:17]} Nd2 {[%emt 0:01:42]} 43. Nxd2 {[%emt 0:00:33]} Rxd2 {[%emt 0:00:16]} 44. Bc6 {[%emt 0:01:13]} e5 {[%emt 0:01:13]} 45. Be4 {[%emt 0:00:24]} Bd4+ {[%emt 0:00:19]} 46. Kb1 {[%emt 0:00:16]} Rb2+ {[%emt 0:00:12]} 47. Kc1 {[%emt 0:00:08]} Rxa2 {[%emt 0:00:14]} 48. Kd1 {[%emt 0:01:30]} a5 {[%emt 0:00:53]} 49. h5 {[%emt 0:00:18]} Ra1+ {[%emt 0:00:13]} 50. Ke2 {[%emt 0:00:06]} Rxf1 {[%emt 0:00:08]} 51. Kxf1 {[%emt 0:00:04]} gxh5 {[%emt 0:00:08]} 52. Bxh7 {[%emt 0:00:09]} a4 {[%emt 0:00:21]} 53. Kg2 {[%emt 0:01:14]} a3 {[%emt 0:00:14]} 54. Bg8 {[%emt 0:00:22]} e4 {[%emt 0:00:12]} 55. Bc4 {[%emt 0:00:36]} f3+ {[%emt 0:00:20]} 56. Kf1 {[%emt 0:00:16]} e3 {[%emt 0:00:16]} 57. Ke1 {[%emt 0:00:10]} Bc3+ {[%emt 0:00:06]} 58. Kf1 {[%emt 0:00:07]} e2+ {[%emt 0:00:07]} 59. Bxe2 {[%emt 0:00:05]} fxe2+ {[%emt 0:00:07]} 60. Kxe2 {[%emt 0:00:04]} a2 {[%emt 0:00:04]} 0-1

[Event "FIDE World Cup G12-B 2024"]
[Site "Batumi"]
[Date "2024.06.23"]
[Round "1.5"]
[White "Bassari, Senem Gul"]
[Black "Shomanova, Adiya"]
[Result "1-0"]
[ECO "C63"]
[WhiteElo "1768"]
[BlackElo "1542"]
[Annotator "NA RC"]
[PlyCount "103"]
[EventDate "2024.06.23"]
[EventType "swiss"]
[EventCountry "GEO"]
[SourceTitle "playchess.com"]
[Source "ChessBase"]
[SourceQuality "1"]
[TimeControl "5400+30"]

1. e4 {[%emt 0:00:09]} e5 {[%emt 0:00:13]} 2. Nf3 {[%emt 0:00:08]} Nc6 {[%emt 0:00:23]} 3. Bb5 {[%emt 0:00:18]} f5 {[%emt 0:00:18]} 4. d3 {[%emt 0:00:42]} fxe4 {[%emt 0:01:04]} 5. dxe4 {[%emt 0:00:06]} Nf6 {[%emt 0:01:34]} 6. O-O {[%emt 0:02:10]} d6 {[%emt 0:03:32]} 7. Qd3 {[%emt 0:03:08]} Be7 {[%emt 0:06:23]} 8. Nc3 {[%emt 0:09:22]} O-O {[%emt 0:09:30]} 9. Ng5 {[%emt 0:09:39]} Qe8 {[%emt 0:12:24]} 10. Nd5 {[%emt 0:06:03]} Nxd5 {[%emt 0:24:11]} 11. exd5 {[%emt 0:05:06]} Qh5 {[%emt 0:10:17]} 12. dxc6 {[%emt 0:02:42]} Bxg5 {[%emt 0:06:12]} 13. Bxg5 {[%emt 0:01:22]} Qxg5 {[%emt 0:00:52]} 14. Qd5+ {[%emt 0:00:12]} Kh8 {[%emt 0:01:08]} 15. cxb7 {[%emt 0:00:15]} Rb8 {[%emt 0:05:43]} 16. bxc8=Q {[%emt 0:00:58]} Rbxc8 {[%emt 0:00:12]} 17. Rad1 {[%emt 0:02:14]} Rf6 {[%emt 0:02:14]} 18. Rd3 {[%emt 0:03:24]} Rcf8 {[%emt 0:00:53]} 19. Rg3 {[%emt 0:02:48]} Qh6 {[%emt 0:02:37]} 20. Rh3 {[%emt 0:02:35]} Qg5 {[%emt 0:01:16]} 21. Qe4 {[%emt 0:02:50]} h6 {[%emt 0:02:56]} 22. Bd3 {[%emt 0:00:36]} Rf5 {[%emt 0:00:32]} 23. Rf3 {[%emt 0:01:25]} g6 {[%emt 0:01:59]} 24. Rg3 {[%emt 0:01:56]} Qf6 {[%emt 0:00:20]} 25. Qe3 {[%emt 0:01:02]} Rg5 {[%emt 0:00:54]} 26. Rxg5 {[%emt 0:00:15]} hxg5 {[%emt 0:00:09]} 27. Qxa7 {[%emt 0:00:41]} c5 {[%emt 0:00:28]} 28. Qb7 {[%emt 0:00:40]} Qe6 {[%emt 0:00:33]} 29. a4 {[%emt 0:01:07]} d5 {[%emt 0:00:28]} 30. Qa6 {[%emt 0:03:41]} Qxa6 {[%emt 0:01:36]} 31. Bxa6 {[%emt 0:00:16]} c4 {[%emt 0:00:10]} 32. Rd1 {[%emt 0:00:11]} Rb8 {[%emt 0:01:16]} 33. Bb5 {[%emt 0:00:20]} d4 {[%emt 0:00:42]} 34. g3 {[%emt 0:00:17]} c3 {[%emt 0:00:23]} 35. bxc3 {[%emt 0:00:15]} dxc3 {[%emt 0:00:06]} 36. Rd5 {[%emt 0:00:25]} e4 {[%emt 0:00:13]} 37. Rxg5 {[%emt 0:00:19]} Kg7 {[%emt 0:00:15]} 38. Rc5 {[%emt 0:00:09]} Rd8 {[%emt 0:00:24]} 39. Rxc3 {[%emt 0:00:31]} Kf6 {[%emt 0:00:11]} 40. Rc5 {[%emt 0:00:11]} g5 {[%emt 0:00:05]} 41. a5 {[%emt 0:00:12]} Ra8 {[%emt 0:00:04]} 42. a6 {[%emt 0:00:06]} Ke6 {[%emt 0:00:05]} 43. Rxg5 {[%emt 0:00:21]} Kd6 {[%emt 0:00:12]} 44. c4 {[%emt 0:00:11]} Kc7 {[%emt 0:00:07]} 45. Rg7+ {[%emt 0:00:04]} Kb6 {[%emt 0:00:07]} 46. Rb7+ {[%emt 0:00:05]} Kc5 {[%emt 0:00:09]} 47. a7 {[%emt 0:00:35]} Kd6 {[%emt 0:00:42]} 48. Rg7 {[%emt 0:00:29]} Kc5 {[%emt 0:00:09]} 49. h4 {[%emt 0:00:21]} Kb6 {[%emt 0:00:07]} 50. h5 {[%emt 0:00:04]} Rh8 {[%emt 0:00:10]} 51. h6 {[%emt 0:00:10]} Kc5 {[%emt 0:00:21]} 52. h7 {[%emt 0:00:18]} 1-0

[Event "FIDE World Cup G12-B 2024"]
[Site "Batumi"]
[Date "2024.06.23"]
[Round "1.6"]
[White "Rusitashvili, Tea"]
[Black "Li, Sophie"]
[Result "1-0"]
[ECO "C56"]
[WhiteElo "1535"]
[BlackElo "1764"]
[Annotator "NA RC"]
[PlyCount "85"]
[EventDate "2024.06.23"]
[EventType "swiss"]
[EventCountry "GEO"]
[SourceTitle "playchess.com"]
[Source "ChessBase"]
[SourceQuality "1"]
[TimeControl "5400+30"]

1. e4 {[%emt 0:00:03]} e5 {[%emt 0:00:11]} 2. Nf3 {[%emt 0:00:07]} Nc6 {[%emt 0:00:14]} 3. d4 {[%emt 0:00:15]} exd4 {[%emt 0:00:27]} 4. Bc4 {[%emt 0:00:06]} Nf6 {[%emt 0:01:50]} 5. e5 {[%emt 0:00:40]} d5 {[%emt 0:01:49]} 6. Bb5 {[%emt 0:01:09]} Ne4 {[%emt 0:00:37]} 7. Nxd4 {[%emt 0:00:34]} Bd7 {[%emt 0:00:48]} 8. Bxc6 {[%emt 0:00:49]} bxc6 {[%emt 0:00:41]} 9. O-O {[%emt 0:00:37]} Be7 {[%emt 0:02:12]} 10. f3 {[%emt 0:01:12]} Nc5 {[%emt 0:01:42]} 11. Be3 {[%emt 0:01:31]} Ne6 {[%emt 0:01:28]} 12. Nf5 {[%emt 0:02:56]} Bg5 {[%emt 0:06:14]} 13. Qd2 {[%emt 0:04:49]} Bxe3+ {[%emt 0:01:05]} 14. Qxe3 {[%emt 0:02:39]} O-O {[%emt 0:02:15]} 15. Nd2 {[%emt 0:02:35]} c5 {[%emt 0:01:31]} 16. c4 {[%emt 0:03:53]} d4 {[%emt 0:05:27]} 17. Qe4 {[%emt 0:01:49]} Ng5 {[%emt 0:02:45]} 18. Qd3 {[%emt 0:01:46]} f6 {[%emt 0:06:25]} 19. f4 {[%emt 0:04:46]} Nf7 {[%emt 0:01:51]} 20. Rae1 {[%emt 0:01:36]} Be6 {[%emt 0:11:34]} 21. Nb3 {[%emt 0:09:42]} Qd7 {[%emt 0:07:30]} 22. Ng3 {[%emt 0:02:12]} Qa4 {[%emt 0:02:32]} 23. Nd2 {[%emt 0:05:46]} fxe5 {[%emt 0:02:19]} 24. f5 {[%emt 0:02:17]} Bd7 {[%emt 0:01:25]} 25. Nge4 {[%emt 0:00:49]} Qc6 {[%emt 0:01:12]} 26. f6 {[%emt 0:01:45]} g6 {[%emt 0:00:51]} 27. Qg3 {[%emt 0:01:03]} Rae8 {[%emt 0:03:32]} 28. b3 {[%emt 0:06:18]} Re6 {[%emt 0:07:41]} 29. h4 {[%emt 0:03:46]} Nd6 {[%emt 0:03:56]} 30. Nxd6 {[%emt 0:09:54]} cxd6 {[%emt 0:02:06]} 31. Ne4 {[%emt 0:00:45]} d5 {[%emt 0:01:36]} 32. cxd5 {[%emt 0:01:20]} Qxd5 {[%emt 0:05:47]} 33. h5 {[%emt 0:00:55]} Be8 {[%emt 0:00:51]} 34. Qf3 {[%emt 0:04:49]} Bf7 {[%emt 0:01:38]} 35. Qg3 {[%emt 0:04:02]} Qc6 {[%emt 0:02:08]} 36. Qg5 {[%emt 0:00:51]} Be8 {[%emt 0:01:48]} 37. Rf5 {[%emt 0:03:18]} Qc7 {[%emt 0:01:15]} 38. Ref1 {[%emt 0:01:37]} Kh8 {[%emt 0:01:17]} 39. Qh6 {[%emt 0:01:39]} Kg8 {[%emt 0:03:41]} 40. Nxc5 {[%emt 0:04:32]} Rc6 {[%emt 0:01:05]} 41. Rxe5 {[%emt 0:00:49]} Rcxf6 {[%emt 0:02:55]} 42. Rxf6 {[%emt 0:00:30]} Bf7 {[%emt 0:00:28]} 43. Ne6 {[%emt 0:01:28]} 1-0

[Event "FIDE World Cup G12-B 2024"]
[Site "Batumi"]
[Date "2024.06.23"]
[Round "1.7"]
[White "Xu, Luna Yuexiu"]
[Black "Bechvaia, Anastasia"]
[Result "1-0"]
[ECO "C41"]
[WhiteElo "1761"]
[BlackElo "1549"]
[Annotator "NA RC"]
[PlyCount "55"]
[EventDate "2024.06.23"]
[EventType "swiss"]
[EventCountry "GEO"]
[SourceTitle "playchess.com"]
[Source "ChessBase"]
[SourceQuality "1"]
[TimeControl "5400+30"]

1. e4 {[%emt 0:00:03]} d6 {[%emt 0:00:06]} 2. d4 {[%emt 0:00:10]} Nf6 {[%emt 0:00:09]} 3. Nc3 {[%emt 0:00:13]} Nbd7 {[%emt 0:00:15]} 4. Bd3 {[%emt 0:01:08]} e5 {[%emt 0:00:12]} 5. Nf3 {[%emt 0:00:53]} Be7 {[%emt 0:00:15]} 6. O-O {[%emt 0:00:25]} O-O {[%emt 0:00:10]} 7. Re1 {[%emt 0:00:46]} c6 {[%emt 0:00:41]} 8. a4 {[%emt 0:00:57]} a5 {[%emt 0:01:57]} 9. h3 {[%emt 0:01:09]} Qb6 {[%emt 0:01:06]} 10. Be3 {[%emt 0:12:21]} Qxb2 {[%emt 0:02:14]} 11. Rb1 {[%emt 0:00:29]} Qxc3 {[%emt 0:00:38]} 12. Rb3 {[%emt 0:00:07]} Qxb3 {[%emt 0:01:33]} 13. cxb3 {[%emt 0:00:05]} exd4 {[%emt 0:01:01]} 14. Bxd4 {[%emt 0:00:24]} c5 {[%emt 0:00:39]} 15. Bc3 {[%emt 0:00:24]} b6 {[%emt 0:00:43]} 16. e5 {[%emt 0:00:27]} Nd5 {[%emt 0:01:38]} 17. Bxh7+ {[%emt 0:00:21]} Kxh7 {[%emt 0:00:18]} 18. Qxd5 {[%emt 0:00:09]} Rb8 {[%emt 0:00:10]} 19. exd6 {[%emt 0:00:17]} Bf6 {[%emt 0:00:09]} 20. Qh5+ {[%emt 0:00:40]} Kg8 {[%emt 0:00:09]} 21. Ng5 {[%emt 0:00:38]} Bxg5 {[%emt 0:00:05]} 22. Qxg5 {[%emt 0:00:06]} f6 {[%emt 0:00:09]} 23. Qd5+ {[%emt 0:00:07]} Kh8 {[%emt 0:00:15]} 24. Re4 {[%emt 0:00:26]} g5 {[%emt 0:00:13]} 25. Re7 {[%emt 0:00:11]} Ne5 {[%emt 0:00:41]} 26. Bxe5 {[%emt 0:00:08]} Bb7 {[%emt 0:00:35]} 27. Qd3 {[%emt 0:00:12]} fxe5 {[%emt 0:00:54]} 28. Qh7# {[%emt 0:00:09]} 1-0

[Event "FIDE World Cup G12-B 2024"]
[Site "Batumi"]
[Date "2024.06.23"]
[Round "1.8"]
[White "Amin-Erdene, Tsengel"]
[Black "Bakhshizada, Asnad"]
[Result "1/2-1/2"]
[ECO "E07"]
[WhiteElo "1491"]
[BlackElo "1748"]
[Annotator "NA RC"]
[PlyCount "85"]
[EventDate "2024.06.23"]
[EventType "swiss"]
[EventCountry "GEO"]
[SourceTitle "playchess.com"]
[Source "ChessBase"]
[SourceQuality "1"]
[TimeControl "5400+30"]

1. d4 {[%emt 0:00:04]} d5 {[%emt 0:00:12]} 2. c4 {[%emt 0:00:11]} c6 {[%emt 0:00:11]} 3. g3 {[%emt 0:00:25]} Nf6 {[%emt 0:00:34]} 4. Nc3 {[%emt 0:00:32]} e6 {[%emt 0:00:21]} 5. Bg2 {[%emt 0:00:36]} Be7 {[%emt 0:02:47]} 6. Nf3 {[%emt 0:02:04]} O-O {[%emt 0:01:46]} 7. O-O {[%emt 0:01:19]} Nbd7 {[%emt 0:05:27]} 8. Nd2 {[%emt 0:01:57]} b6 {[%emt 0:07:08]} 9. e4 {[%emt 0:01:57]} dxe4 {[%emt 0:01:17]} 10. Ndxe4 {[%emt 0:00:39]} Bb7 {[%emt 0:02:00]} 11. Bf4 {[%emt 0:01:48]} Nxe4 {[%emt 0:02:11]} 12. Nxe4 {[%emt 0:00:21]} Nf6 {[%emt 0:00:56]} 13. Qc2 {[%emt 0:01:30]} h6 {[%emt 0:04:12]} 14. Rfd1 {[%emt 0:03:50]} Qc8 {[%emt 0:06:25]} 15. Nxf6+ {[%emt 0:02:34]} Bxf6 {[%emt 0:02:15]} 16. Bd6 {[%emt 0:03:56]} Re8 {[%emt 0:00:56]} 17. c5 {[%emt 0:01:39]} e5 {[%emt 0:03:40]} 18. dxe5 {[%emt 0:04:06]} Bxe5 {[%emt 0:00:28]} 19. Re1 {[%emt 0:04:59]} Bf6 {[%emt 0:02:26]} 20. Be4 {[%emt 0:03:48]} bxc5 {[%emt 0:07:55]} 21. Bxc5 {[%emt 0:05:15]} Qc7 {[%emt 0:01:13]} 22. Rad1 {[%emt 0:02:01]} Rad8 {[%emt 0:03:18]} 23. Rxd8 {[%emt 0:02:30]} Rxd8 {[%emt 0:00:20]} 24. Qa4 {[%emt 0:04:28]} a6 {[%emt 0:06:57]} 25. Qb3 {[%emt 0:04:23]} Qd7 {[%emt 0:01:17]} 26. Bc2 {[%emt 0:03:53]} Ba8 {[%emt 0:03:19]} 27. Rd1 {[%emt 0:03:40]} Qc7 {[%emt 0:03:11]} 28. Rxd8+ {[%emt 0:02:12]} Qxd8 {[%emt 0:01:20]} 29. Bg6 {[%emt 0:03:25]} Qe8 {[%emt 0:00:41]} 30. Bd3 {[%emt 0:07:47]} Qe1+ {[%emt 0:04:43]} 31. Kg2 {[%emt 0:01:34]} Qe5 {[%emt 0:00:42]} 32. Be3 {[%emt 0:08:57]} Qd5+ {[%emt 0:01:27]} 33. Qxd5 {[%emt 0:00:46]} cxd5 {[%emt 0:00:07]} 34. Bb6 {[%emt 0:01:22]} Bxb2 {[%emt 0:00:56]} 35. Bxa6 {[%emt 0:00:23]} d4+ {[%emt 0:00:40]} 36. f3 {[%emt 0:00:32]} Bc6 {[%emt 0:04:36]} 37. Kf2 {[%emt 0:01:20]} Ba4 {[%emt 0:01:27]} 38. Ke2 {[%emt 0:01:13]} Bc2 {[%emt 0:01:12]} 39. Bb5 {[%emt 0:01:20]} Bc3 {[%emt 0:00:56]} 40. Bc5 {[%emt 0:02:32]} g6 {[%emt 0:02:05]} 41. a3 {[%emt 0:00:44]} Kg7 {[%emt 0:02:24]} 42. Bb4 {[%emt 0:01:06]} Kf6 {[%emt 0:02:18]} 43. Bd3 {[%emt 0:02:52]} 1/2-1/2